[Event "*** Titled Tuesday Blitz"]
[Site "Chess.com"]
[Date "2020.10.20"]
[Round "2"]
[White "DrMamaliga"]
[Black "AurumO"]
[Result "1-0"]
[WhiteElo "2361"]
[BlackElo "1949"]
[TimeControl "180+1"]
[EndTime "10:18:09 PDT"]
[Termination "DrMamaliga won by checkmate"]

1. c4 {[%clk 0:02:58]} 1... e6 {[%clk 0:02:58.2]} 2. Nf3 {[%clk 0:02:57.4]} 2...
Nf6 {[%clk 0:02:45.5]} 3. b3 {[%clk 0:02:57.3]} 3... d5 {[%clk 0:02:45]} 4. g3
{[%clk 0:02:57.8]} 4... c5 {[%clk 0:02:40]} 5. Bg2 {[%clk 0:02:56.6]} 5... Nc6
{[%clk 0:02:37.8]} 6. O-O {[%clk 0:02:56.4]} 6... Be7 {[%clk 0:02:27]} 7. Bb2
{[%clk 0:02:55.8]} 7... O-O {[%clk 0:02:26.6]} 8. e3 {[%clk 0:02:55.7]} 8... h6
{[%clk 0:02:11.2]} 9. Qe2 {[%clk 0:02:53.7]} 9... d4 {[%clk 0:01:54.4]} 10. exd4
{[%clk 0:02:51.8]} 10... Nxd4 {[%clk 0:01:55.3]} 11. Nxd4 {[%clk 0:02:50.5]}
11... cxd4 {[%clk 0:01:54.9]} 12. Qe5 {[%clk 0:02:38.5]} 12... d3 {[%clk
0:01:42.5]} 13. Nc3 {[%clk 0:02:35.2]} 13... Bd7 {[%clk 0:01:42.1]} 14. Bxb7
{[%clk 0:02:29.7]} 14... Rb8 {[%clk 0:01:40.3]} 15. Bg2 {[%clk 0:02:29.7]} 15...
Qc8 {[%clk 0:01:28.2]} 16. Rfe1 {[%clk 0:02:12.4]} 16... Bc6 {[%clk 0:01:27.5]}
17. Bxc6 {[%clk 0:01:38.9]} 17... Qxc6 {[%clk 0:01:28.4]} 18. Ne4 {[%clk
0:01:37.5]} 18... Rfd8 {[%clk 0:01:14.2]} 19. Qf4 {[%clk 0:01:36.4]} 19... Nxe4
{[%clk 0:01:00.6]} 20. Qxe4 {[%clk 0:01:35.1]} 20... Qxe4 {[%clk 0:00:42.2]} 21.
Rxe4 {[%clk 0:01:36]} 21... Bb4 {[%clk 0:00:42.2]} 22. Rd1 {[%clk 0:01:33.6]}
22... Rd7 {[%clk 0:00:34.5]} 23. a3 {[%clk 0:01:31.1]} 23... Be7 {[%clk
0:00:29.8]} 24. b4 {[%clk 0:01:28.6]} 24... a5 {[%clk 0:00:28.5]} 25. b5 {[%clk
0:01:22.8]} 25... Bc5 {[%clk 0:00:25.2]} 26. Rc1 {[%clk 0:01:19.9]} 26... a4
{[%clk 0:00:25.5]} 27. Kf1 {[%clk 0:01:19.2]} 27... Rbd8 {[%clk 0:00:21.9]} 28.
Bc3 {[%clk 0:01:16.1]} 28... Bxa3 {[%clk 0:00:20.8]} 29. Ra1 {[%clk 0:01:15.6]}
29... Bc5 {[%clk 0:00:16.3]} 30. Rxa4 {[%clk 0:01:15.3]} 30... Ra7 {[%clk
0:00:16.8]} 31. Rxa7 {[%clk 0:01:13.7]} 31... Bxa7 {[%clk 0:00:17.7]} 32. Ba5
{[%clk 0:01:09.1]} 32... Rc8 {[%clk 0:00:15]} 33. b6 {[%clk 0:01:07]} 33... Bb8
{[%clk 0:00:15.3]} 34. Rd4 {[%clk 0:01:06.2]} 34... Be5 {[%clk 0:00:12.8]} 35.
Rxd3 {[%clk 0:01:04]} 35... Rxc4 {[%clk 0:00:13.1]} 36. b7 {[%clk 0:01:01.5]}
36... Rc1+ {[%clk 0:00:12.5]} 37. Ke2 {[%clk 0:01:00.3]} 37... Rb1 {[%clk
0:00:13.2]} 38. Rd7 {[%clk 0:00:56.3]} 38... g6 {[%clk 0:00:12.1]} 39. f4 {[%clk
0:00:55.3]} 39... Bf6 {[%clk 0:00:09.3]} 40. Bc3 {[%clk 0:00:49.9]} 40... Bxc3
{[%clk 0:00:06.6]} 41. dxc3 {[%clk 0:00:50.8]} 41... Kg7 {[%clk 0:00:07.2]} 42.
c4 {[%clk 0:00:50.5]} 42... Rb2+ {[%clk 0:00:07.7]} 43. Kd1 {[%clk 0:00:49.2]}
43... Kf6 {[%clk 0:00:07.9]} 44. c5 {[%clk 0:00:49]} 44... Rb1+ {[%clk
0:00:06.4]} 45. Kc2 {[%clk 0:00:48]} 45... Rb5 {[%clk 0:00:06.3]} 46. c6 {[%clk
0:00:47.4]} 46... Rc5+ {[%clk 0:00:06.8]} 47. Kb1 {[%clk 0:00:46.6]} 47... Rxc6
{[%clk 0:00:06.5]} 48. b8=Q {[%clk 0:00:46]} 48... Rc5 {[%clk 0:00:06]} 49. Qf8
{[%clk 0:00:43.5]} 49... Rb5+ {[%clk 0:00:05.3]} 50. Kc2 {[%clk 0:00:43.6]}
50... Ra5 {[%clk 0:00:04.1]} 51. Qxf7# {[%clk 0:00:42.6]} 1-0

[Event "*** Titled Tuesday Blitz"]
[Site "Chess.com"]
[Date "2020.10.20"]
[Round "2"]
[White "WPWPWP-2015"]
[Black "KetiGrant"]
[Result "0-1"]
[WhiteElo "2443"]
[BlackElo "2299"]
[TimeControl "180+1"]
[EndTime "10:18:10 PDT"]
[Termination "KetiGrant won by checkmate"]

1. e4 {[%clk 0:03:00.9]} 1... c5 {[%clk 0:02:59.8]} 2. Nf3 {[%clk 0:02:59.9]}
2... Nc6 {[%clk 0:02:59.8]} 3. Bb5 {[%clk 0:02:59.6]} 3... g6 {[%clk 0:02:59]}
4. O-O {[%clk 0:02:58.6]} 4... Bg7 {[%clk 0:02:58.4]} 5. c3 {[%clk 0:02:58.2]}
5... Nf6 {[%clk 0:02:58]} 6. Qe2 {[%clk 0:02:57]} 6... O-O {[%clk 0:02:54.2]} 7.
Rd1 {[%clk 0:02:56.6]} 7... e5 {[%clk 0:02:48.6]} 8. h3 {[%clk 0:02:39.2]} 8...
Nh5 {[%clk 0:02:42.3]} 9. d3 {[%clk 0:02:23.6]} 9... d6 {[%clk 0:02:26]} 10. a4
{[%clk 0:02:16.9]} 10... Be6 {[%clk 0:02:22.4]} 11. Ng5 {[%clk 0:02:07.8]} 11...
Bb3 {[%clk 0:02:20]} 12. Rf1 {[%clk 0:02:02.7]} 12... Nf4 {[%clk 0:02:17.7]} 13.
Bxf4 {[%clk 0:01:58.1]} 13... exf4 {[%clk 0:02:18.6]} 14. Nf3 {[%clk 0:01:48.2]}
14... a6 {[%clk 0:02:16]} 15. Bxc6 {[%clk 0:01:45.5]} 15... bxc6 {[%clk
0:02:16]} 16. Nbd2 {[%clk 0:01:45.3]} 16... Be6 {[%clk 0:02:14.7]} 17. d4 {[%clk
0:01:25.9]} 17... cxd4 {[%clk 0:02:13.5]} 18. cxd4 {[%clk 0:01:24.5]} 18... g5
{[%clk 0:02:13]} 19. Qd3 {[%clk 0:01:17.2]} 19... Rb8 {[%clk 0:01:35.8]} 20.
Qxa6 {[%clk 0:01:01.8]} 20... Rxb2 {[%clk 0:01:28.3]} 21. Qxc6 {[%clk
0:00:57.6]} 21... h5 {[%clk 0:01:22.2]} 22. Qc3 {[%clk 0:00:29]} 22... Rb8
{[%clk 0:01:19.3]} 23. Rfb1 {[%clk 0:00:14.2]} 23... g4 {[%clk 0:01:18.3]} 24.
hxg4 {[%clk 0:00:11.6]} 24... hxg4 {[%clk 0:01:17.3]} 25. Ne1 {[%clk 0:00:10.8]}
25... Qh4 {[%clk 0:01:14.8]} 26. Nf1 {[%clk 0:00:07.8]} 26... Rbc8 {[%clk
0:01:12]} 27. Qd2 {[%clk 0:00:04.5]} 27... Rc4 {[%clk 0:01:10.2]} 28. Qxf4
{[%clk 0:00:04]} 28... Rxd4 {[%clk 0:01:07.4]} 29. Qg3 {[%clk 0:00:03.5]} 29...
Qh5 {[%clk 0:01:05.2]} 30. a5 {[%clk 0:00:03.9]} 30... Be5 {[%clk 0:01:04.5]}
31. f4 {[%clk 0:00:03.6]} 31... Bf6 {[%clk 0:00:59.3]} 32. Ne3 {[%clk
0:00:03.8]} 32... Rxe4 {[%clk 0:00:58.3]} 33. f5 {[%clk 0:00:03.3]} 33... Be5
{[%clk 0:00:55.6]} 34. Qf2 {[%clk 0:00:02.6]} 34... Qh2+ {[%clk 0:00:51.8]} 35.
Kf1 {[%clk 0:00:03]} 35... Rf4 {[%clk 0:00:50.7]} 36. Nf3 {[%clk 0:00:02.4]}
36... gxf3 {[%clk 0:00:47.1]} 37. g3 {[%clk 0:00:02.7]} 37... Qh1+ {[%clk
0:00:39.9]} 38. Qg1 {[%clk 0:00:02.9]} 38... Qh3+ {[%clk 0:00:39.8]} 39. Kf2
{[%clk 0:00:02.5]} 39... Rd4 {[%clk 0:00:38.3]} 40. Rd1 {[%clk 0:00:01.9]} 40...
Bxf5 {[%clk 0:00:36]} 41. Nxf5 {[%clk 0:00:01.6]} 41... Qxf5 {[%clk 0:00:35.2]}
42. Qe1 {[%clk 0:00:01.5]} 42... Qc2+ {[%clk 0:00:30.1]} 43. Kf1 {[%clk
0:00:01]} 43... Qg2# {[%clk 0:00:28.8]} 0-1

[Event "*** Titled Tuesday Blitz"]
[Site "Chess.com"]
[Date "2020.10.20"]
[Round "2"]
[White "yobdc"]
[Black "Margarita2907"]
[Result "0-1"]
[WhiteElo "2383"]
[BlackElo "2178"]
[TimeControl "180+1"]
[EndTime "10:18:10 PDT"]
[Termination "Margarita2907 won by resignation"]

1. e4 {[%clk 0:03:00.9]} 1... c5 {[%clk 0:02:59]} 2. Nf3 {[%clk 0:02:59.6]} 2...
d6 {[%clk 0:02:56.4]} 3. d4 {[%clk 0:02:59.9]} 3... cxd4 {[%clk 0:02:56.4]} 4.
Nxd4 {[%clk 0:03:00.8]} 4... Nf6 {[%clk 0:02:56.4]} 5. Nc3 {[%clk 0:03:01.4]}
5... a6 {[%clk 0:02:56.7]} 6. Be2 {[%clk 0:03:01.9]} 6... e5 {[%clk 0:02:55.8]}
7. Nb3 {[%clk 0:03:02.2]} 7... Be7 {[%clk 0:02:56.4]} 8. Bg5 {[%clk 0:03:02.8]}
8... Be6 {[%clk 0:02:51.5]} 9. Bxf6 {[%clk 0:03:03]} 9... Bxf6 {[%clk
0:02:50.9]} 10. Qd3 {[%clk 0:03:03.4]} 10... O-O {[%clk 0:02:48.9]} 11. O-O-O
{[%clk 0:03:00.4]} 11... Be7 {[%clk 0:02:48.9]} 12. Kb1 {[%clk 0:03:00.2]} 12...
Nc6 {[%clk 0:02:44.2]} 13. Nd5 {[%clk 0:02:54.9]} 13... Bxd5 {[%clk 0:02:37.9]}
14. Qxd5 {[%clk 0:02:55.8]} 14... Rc8 {[%clk 0:02:35.5]} 15. c3 {[%clk
0:02:54.5]} 15... b5 {[%clk 0:02:32.1]} 16. h4 {[%clk 0:02:42]} 16... Qb6 {[%clk
0:02:30]} 17. Rhf1 {[%clk 0:02:20.1]} 17... b4 {[%clk 0:02:24.4]} 18. c4 {[%clk
0:02:14.8]} 18... a5 {[%clk 0:02:20.8]} 19. Qb5 {[%clk 0:01:35.2]} 19... Qa7
{[%clk 0:02:08.6]} 20. Qa4 {[%clk 0:01:32.6]} 20... Rfd8 {[%clk 0:01:39.1]} 21.
Rd5 {[%clk 0:01:32.3]} 21... Bxh4 {[%clk 0:01:28.1]} 22. g3 {[%clk 0:01:31.9]}
22... Be7 {[%clk 0:01:24]} 23. Bg4 {[%clk 0:01:19.1]} 23... Rc7 {[%clk 0:01:18]}
24. Nxa5 {[%clk 0:00:54.9]} 24... Ra8 {[%clk 0:01:12.4]} 25. c5 {[%clk
0:00:36.6]} 25... dxc5 {[%clk 0:01:01.2]} 26. Rfd1 {[%clk 0:00:26.3]} 26... Nxa5
{[%clk 0:00:56.9]} 27. Rxe5 {[%clk 0:00:25.4]} 27... Nc6 {[%clk 0:00:47.5]} 28.
Qxa7 {[%clk 0:00:21.5]} 28... Rcxa7 {[%clk 0:00:47.4]} 29. Red5 {[%clk
0:00:19.6]} 29... Rxa2 {[%clk 0:00:43.8]} 30. Rd7 {[%clk 0:00:17.3]} 30... Bf6
{[%clk 0:00:37]} 31. e5 {[%clk 0:00:16.6]} 31... Nxe5 {[%clk 0:00:28.2]} 32. Rb7
{[%clk 0:00:08.5]} 32... Nxg4 {[%clk 0:00:26.2]} 33. Rd2 {[%clk 0:00:09]} 33...
Ra1+ {[%clk 0:00:22.2]} 34. Kc2 {[%clk 0:00:08.9]} 34... g6 {[%clk 0:00:19.5]}
35. Rdd7 {[%clk 0:00:07.9]} 35... R8a2 {[%clk 0:00:17]} 36. Rxf7 {[%clk
0:00:07]} 36... Rxb2+ {[%clk 0:00:17.3]} 37. Kd3 {[%clk 0:00:07.4]} 37... Ne5+
{[%clk 0:00:16.8]} 0-1

[Event "*** Titled Tuesday Blitz"]
[Site "Chess.com"]
[Date "2020.10.20"]
[Round "2"]
[White "Oleksandr_Bortnyk"]
[Black "elcandado"]
[Result "1-0"]
[WhiteElo "2881"]
[BlackElo "2568"]
[TimeControl "180+1"]
[EndTime "10:18:11 PDT"]
[Termination "Oleksandr_Bortnyk won on time"]

1. e4 {[%clk 0:03:00.9]} 1... e5 {[%clk 0:02:54.5]} 2. Nf3 {[%clk 0:02:58.7]}
2... Nc6 {[%clk 0:02:54.3]} 3. d4 {[%clk 0:02:57.9]} 3... exd4 {[%clk
0:02:53.6]} 4. Nxd4 {[%clk 0:02:58.8]} 4... Bc5 {[%clk 0:02:51.8]} 5. Be3 {[%clk
0:02:58.1]} 5... Qf6 {[%clk 0:02:50.6]} 6. c3 {[%clk 0:02:58.3]} 6... Nge7
{[%clk 0:02:48.3]} 7. Bc4 {[%clk 0:02:58.7]} 7... Ne5 {[%clk 0:02:48]} 8. Be2
{[%clk 0:02:57.9]} 8... Qg6 {[%clk 0:02:41.7]} 9. O-O {[%clk 0:02:57.7]} 9... d6
{[%clk 0:02:41]} 10. Kh1 {[%clk 0:02:57]} 10... O-O {[%clk 0:02:23]} 11. f3
{[%clk 0:02:38.2]} 11... Kh8 {[%clk 0:01:57.8]} 12. Nd2 {[%clk 0:02:31.4]} 12...
f5 {[%clk 0:01:54.3]} 13. f4 {[%clk 0:02:21.8]} 13... Nf7 {[%clk 0:01:13]} 14.
Rf3 {[%clk 0:02:13.5]} 14... Nh6 {[%clk 0:00:58.5]} 15. Rg3 {[%clk 0:02:11.7]}
15... Qf6 {[%clk 0:00:57.5]} 16. b4 {[%clk 0:01:31.4]} 16... Bb6 {[%clk
0:00:56.4]} 17. Qb3 {[%clk 0:01:31.8]} 17... c5 {[%clk 0:00:45.4]} 18. bxc5
{[%clk 0:01:20.5]} 18... dxc5 {[%clk 0:00:46.3]} 19. e5 {[%clk 0:01:19.5]} 19...
Qf7 {[%clk 0:00:35.1]} 20. Bc4 {[%clk 0:01:20]} 20... Qe8 {[%clk 0:00:29.6]} 21.
Nb5 {[%clk 0:01:19.9]} 21... Ng4 {[%clk 0:00:24.7]} 22. Nd6 {[%clk 0:01:19.2]}
22... Qd8 {[%clk 0:00:21.2]} 23. Bg1 {[%clk 0:01:12.9]} 23... Ng6 {[%clk
0:00:17.6]} 24. Rf1 {[%clk 0:00:56.6]} 24... h6 {[%clk 0:00:13.7]} 25. Bf7
{[%clk 0:00:37.4]} 25... Nh4 {[%clk 0:00:10.5]} 26. N2c4 {[%clk 0:00:31.5]}
26... Bd7 {[%clk 0:00:09.5]} 27. Bd5 {[%clk 0:00:27.8]} 27... Bc6 {[%clk
0:00:09.3]} 28. Bxc6 {[%clk 0:00:28.3]} 28... bxc6 {[%clk 0:00:10.2]} 29. Nxf5
{[%clk 0:00:27.3]} 29... Nxf5 {[%clk 0:00:08.7]} 30. Rxg4 {[%clk 0:00:27.9]}
30... Rb8 {[%clk 0:00:08.7]} 31. Qc2 {[%clk 0:00:27.5]} 31... Qe7 {[%clk
0:00:07]} 32. Rg6 {[%clk 0:00:27.1]} 32... Qf7 {[%clk 0:00:06.7]} 33. Nxb6
{[%clk 0:00:23]} 33... axb6 {[%clk 0:00:03.5]} 34. Rxc6 {[%clk 0:00:17.9]} 34...
Qc4 {[%clk 0:00:03.8]} 35. Rf3 {[%clk 0:00:15]} 35... Rbd8 {[%clk 0:00:03.5]}
36. Rxb6 {[%clk 0:00:09.8]} 36... Rd5 {[%clk 0:00:02.2]} 37. Rb1 {[%clk
0:00:09.3]} 1-0

[Event "*** Titled Tuesday Blitz"]
[Site "Chess.com"]
[Date "2020.10.20"]
[Round "2"]
[White "Klavdia_Nik"]
[Black "lucachess49"]
[Result "0-1"]
[WhiteElo "2081"]
[BlackElo "2381"]
[TimeControl "180+1"]
[EndTime "10:18:11 PDT"]
[Termination "lucachess49 won by resignation"]

1. Nf3 {[%clk 0:02:51.3]} 1... Nf6 {[%clk 0:02:57.4]} 2. c4 {[%clk 0:02:51.4]}
2... e6 {[%clk 0:02:57.1]} 3. b3 {[%clk 0:02:51.2]} 3... b6 {[%clk 0:02:55.7]}
4. g3 {[%clk 0:02:50.6]} 4... Bb7 {[%clk 0:02:56.2]} 5. Bg2 {[%clk 0:02:51.2]}
5... d6 {[%clk 0:02:56.8]} 6. Bb2 {[%clk 0:02:51.5]} 6... Nbd7 {[%clk
0:02:57.5]} 7. d4 {[%clk 0:02:51.5]} 7... g6 {[%clk 0:02:57.6]} 8. Nc3 {[%clk
0:02:49.6]} 8... Bg7 {[%clk 0:02:58.1]} 9. O-O {[%clk 0:02:49.6]} 9... O-O
{[%clk 0:02:58.6]} 10. Qc2 {[%clk 0:02:49.5]} 10... Qe7 {[%clk 0:02:56.6]} 11.
e4 {[%clk 0:02:48.6]} 11... c5 {[%clk 0:02:42.3]} 12. Rad1 {[%clk 0:02:38.9]}
12... Rfd8 {[%clk 0:02:20.9]} 13. Rfe1 {[%clk 0:02:36.8]} 13... Rac8 {[%clk
0:02:12.5]} 14. h3 {[%clk 0:02:36.1]} 14... a6 {[%clk 0:02:09.9]} 15. e5 {[%clk
0:02:26.3]} 15... dxe5 {[%clk 0:02:05.4]} 16. dxe5 {[%clk 0:02:26.5]} 16... Ne8
{[%clk 0:02:03.8]} 17. Ne4 {[%clk 0:02:23.9]} 17... Nb8 {[%clk 0:01:51.9]} 18.
Kh2 {[%clk 0:02:12.9]} 18... Nc6 {[%clk 0:01:51.6]} 19. Bc3 {[%clk 0:01:40.3]}
19... Rc7 {[%clk 0:01:30.3]} 20. Qb2 {[%clk 0:01:13]} 20... Rcd7 {[%clk
0:01:23.3]} 21. Rxd7 {[%clk 0:01:11.4]} 21... Rxd7 {[%clk 0:01:21.3]} 22. Nfd2
{[%clk 0:01:05.9]} 22... Qd8 {[%clk 0:01:15.2]} 23. f4 {[%clk 0:01:04.6]} 23...
Rd3 {[%clk 0:01:10.5]} 24. Bf1 {[%clk 0:01:00.8]} 24... Rd7 {[%clk 0:01:04.8]}
25. Nf3 {[%clk 0:00:58.7]} 25... Nd4 {[%clk 0:00:56.1]} 26. Nfd2 {[%clk
0:00:43.5]} 26... f6 {[%clk 0:00:37.6]} 27. exf6 {[%clk 0:00:38.7]} 27... Nxf6
{[%clk 0:00:38.5]} 28. Bg2 {[%clk 0:00:31.7]} 28... Nxe4 {[%clk 0:00:31]} 29.
Nxe4 {[%clk 0:00:30.5]} 29... e5 {[%clk 0:00:26.1]} 30. Qc1 {[%clk 0:00:12.8]}
30... Rf7 {[%clk 0:00:18.2]} 31. Ng5 {[%clk 0:00:11.3]} 31... Re7 {[%clk
0:00:13.8]} 32. Bxb7 {[%clk 0:00:09.5]} 32... Rxb7 {[%clk 0:00:14.7]} 33. fxe5
{[%clk 0:00:08.3]} 33... Qxg5 {[%clk 0:00:14.8]} 34. Qxg5 {[%clk 0:00:07.6]}
34... Nf3+ {[%clk 0:00:14.9]} 35. Kg2 {[%clk 0:00:08.1]} 35... Nxg5 {[%clk
0:00:15.8]} 36. e6 {[%clk 0:00:07.1]} 36... Re7 {[%clk 0:00:15.9]} 37. Bxg7
{[%clk 0:00:06.3]} 37... Kxg7 {[%clk 0:00:16.8]} 0-1

[Event "*** Titled Tuesday Blitz"]
[Site "Chess.com"]
[Date "2020.10.20"]
[Round "2"]
[White "TudorAnton"]
[Black "Mazetovic"]
[Result "0-1"]
[WhiteElo "2485"]
[BlackElo "2755"]
[TimeControl "180+1"]
[EndTime "10:18:13 PDT"]
[Termination "Mazetovic won by resignation"]

1. d4 {[%clk 0:02:58.9]} 1... Nf6 {[%clk 0:02:59.7]} 2. c4 {[%clk 0:02:57]} 2...
g6 {[%clk 0:03:00.3]} 3. Nf3 {[%clk 0:02:57.4]} 3... Bg7 {[%clk 0:03:01]} 4. g3
{[%clk 0:02:58.1]} 4... O-O {[%clk 0:03:01.6]} 5. Bg2 {[%clk 0:02:58.7]} 5... d6
{[%clk 0:03:02.5]} 6. O-O {[%clk 0:02:59.2]} 6... c6 {[%clk 0:03:03.4]} 7. Nc3
{[%clk 0:02:59.6]} 7... Qa5 {[%clk 0:03:04.1]} 8. h3 {[%clk 0:03:00.1]} 8... e5
{[%clk 0:03:00.9]} 9. e4 {[%clk 0:02:59.9]} 9... Nbd7 {[%clk 0:03:00.9]} 10. Re1
{[%clk 0:02:59.5]} 10... Re8 {[%clk 0:02:54.3]} 11. d5 {[%clk 0:02:53.4]} 11...
cxd5 {[%clk 0:02:54.2]} 12. cxd5 {[%clk 0:02:54.3]} 12... b5 {[%clk 0:02:54.4]}
13. a3 {[%clk 0:02:24.8]} 13... a6 {[%clk 0:02:14.7]} 14. b4 {[%clk 0:02:20.3]}
14... Qc7 {[%clk 0:02:14.3]} 15. Qb3 {[%clk 0:02:17.1]} 15... Nb6 {[%clk
0:02:14.2]} 16. Bg5 {[%clk 0:02:14]} 16... Nc4 {[%clk 0:01:58.2]} 17. a4 {[%clk
0:02:09.7]} 17... Bd7 {[%clk 0:01:53.1]} 18. Bf1 {[%clk 0:02:08.6]} 18... Rec8
{[%clk 0:01:43.4]} 19. Rec1 {[%clk 0:02:08]} 19... Qb7 {[%clk 0:01:42.4]} 20.
axb5 {[%clk 0:02:05.7]} 20... axb5 {[%clk 0:01:41.4]} 21. Rxa8 {[%clk
0:02:05.9]} 21... Qxa8 {[%clk 0:01:37.7]} 22. Bxf6 {[%clk 0:02:03.7]} 22... Bxf6
{[%clk 0:01:37.5]} 23. Nxb5 {[%clk 0:02:03.7]} 23... Bxb5 {[%clk 0:01:30.3]} 24.
Bxc4 {[%clk 0:02:03.3]} 24... Rc7 {[%clk 0:01:19.4]} 25. Rc2 {[%clk 0:01:12.9]}
25... Qc8 {[%clk 0:00:46.9]} 26. Bd3 {[%clk 0:01:12.1]} 26... Bd7 {[%clk
0:00:47]} 27. Rxc7 {[%clk 0:01:11.2]} 27... Qxc7 {[%clk 0:00:46.5]} 28. Kg2
{[%clk 0:01:10.4]} 28... Bd8 {[%clk 0:00:46]} 29. Qc4 {[%clk 0:01:07]} 29... Qb8
{[%clk 0:00:42]} 30. Ne1 {[%clk 0:01:03.1]} 30... Bb6 {[%clk 0:00:41]} 31. Be2
{[%clk 0:00:41.5]} 31... h5 {[%clk 0:00:31.1]} 32. Qa2 {[%clk 0:00:33.4]} 32...
Qc7 {[%clk 0:00:27.7]} 33. Qc4 {[%clk 0:00:29]} 33... Qa7 {[%clk 0:00:26.6]} 34.
Nd3 {[%clk 0:00:27.8]} 34... Qa1 {[%clk 0:00:22.3]} 35. Qc1 {[%clk 0:00:20]}
35... Qd4 {[%clk 0:00:17.6]} 36. Qc2 {[%clk 0:00:14.5]} 36... f5 {[%clk
0:00:16.5]} 37. Qa2 {[%clk 0:00:06.2]} 37... fxe4 {[%clk 0:00:15.6]} 38. Qa8+
{[%clk 0:00:06.6]} 38... Kg7 {[%clk 0:00:14.6]} 39. Qb7 {[%clk 0:00:07.5]} 39...
exd3 {[%clk 0:00:13.5]} 40. Qxd7+ {[%clk 0:00:08.4]} 40... Kh6 {[%clk
0:00:13.8]} 41. Qe8 {[%clk 0:00:07.7]} 41... Qxf2+ {[%clk 0:00:13.7]} 0-1

[Event "*** Titled Tuesday Blitz"]
[Site "Chess.com"]
[Date "2020.10.20"]
[Round "2"]
[White "SantoBlue"]
[Black "rynos0411"]
[Result "1-0"]
[WhiteElo "2774"]
[BlackElo "2498"]
[TimeControl "180+1"]
[EndTime "10:18:14 PDT"]
[Termination "SantoBlue won by resignation"]

1. Nf3 {[%clk 0:03:00.9]} 1... Nf6 {[%clk 0:02:57.7]} 2. g3 {[%clk 0:03:00.4]}
2... e6 {[%clk 0:02:55.8]} 3. Bg2 {[%clk 0:03:00.5]} 3... d5 {[%clk 0:02:55.7]}
4. O-O {[%clk 0:03:00.8]} 4... Be7 {[%clk 0:02:54.6]} 5. b3 {[%clk 0:03:01.3]}
5... O-O {[%clk 0:02:52.9]} 6. c4 {[%clk 0:03:01.8]} 6... c6 {[%clk 0:02:52.3]}
7. Bb2 {[%clk 0:03:02]} 7... Nbd7 {[%clk 0:02:50.4]} 8. d3 {[%clk 0:03:02.4]}
8... a5 {[%clk 0:02:48.2]} 9. a3 {[%clk 0:03:02.6]} 9... Re8 {[%clk 0:02:47.2]}
10. Nbd2 {[%clk 0:03:02.9]} 10... Qc7 {[%clk 0:02:45.8]} 11. e4 {[%clk
0:03:01.1]} 11... dxe4 {[%clk 0:02:33.2]} 12. Nxe4 {[%clk 0:02:57.8]} 12... Nxe4
{[%clk 0:02:26.3]} 13. dxe4 {[%clk 0:02:58.7]} 13... e5 {[%clk 0:02:25.3]} 14.
Qc2 {[%clk 0:02:56.3]} 14... Bf8 {[%clk 0:02:24.1]} 15. Nh4 {[%clk 0:02:54.4]}
15... Nc5 {[%clk 0:02:23.5]} 16. Rae1 {[%clk 0:02:47.2]} 16... Be6 {[%clk
0:02:15.5]} 17. Kh1 {[%clk 0:02:42.6]} 17... Rad8 {[%clk 0:02:11.5]} 18. Re3
{[%clk 0:02:40.5]} 18... g6 {[%clk 0:01:57.4]} 19. f4 {[%clk 0:02:38.4]} 19...
exf4 {[%clk 0:01:55.9]} 20. gxf4 {[%clk 0:02:38.1]} 20... Qe7 {[%clk 0:01:48]}
21. Qc3 {[%clk 0:02:37.5]} 21... f6 {[%clk 0:01:41.6]} 22. f5 {[%clk 0:02:30.3]}
22... Bf7 {[%clk 0:01:33.8]} 23. fxg6 {[%clk 0:01:52.9]} 23... hxg6 {[%clk
0:01:31.3]} 24. Nf5 {[%clk 0:01:17.4]} 24... gxf5 {[%clk 0:01:25]} 25. Rg3+
{[%clk 0:01:17.4]} 25... Bg7 {[%clk 0:01:25.4]} 26. Qxf6 {[%clk 0:01:15.8]}
26... Qxf6 {[%clk 0:00:57.5]} 27. Bxf6 {[%clk 0:01:16.7]} 27... Rd3 {[%clk
0:00:42]} 28. Rxg7+ {[%clk 0:01:14.2]} 28... Kf8 {[%clk 0:00:41.7]} 29. e5
{[%clk 0:01:08.3]} 29... Rxb3 {[%clk 0:00:37.7]} 30. Rh7 {[%clk 0:01:07.1]}
30... Bxc4 {[%clk 0:00:28.6]} 31. Rg1 {[%clk 0:00:53.2]} 31... Bg8 {[%clk
0:00:23.9]} 32. Rg7 {[%clk 0:00:47.7]} 32... Bf7 {[%clk 0:00:18.1]} 33. Rh7
{[%clk 0:00:37.7]} 33... Bg8 {[%clk 0:00:13.5]} 34. Rg7 {[%clk 0:00:31.6]} 34...
Bf7 {[%clk 0:00:13.3]} 35. h4 {[%clk 0:00:32.1]} 35... Ne4 {[%clk 0:00:11.9]}
36. Bxe4 {[%clk 0:00:27.5]} 36... fxe4 {[%clk 0:00:12.8]} 37. Rh7 {[%clk
0:00:27.6]} 37... Rh3+ {[%clk 0:00:08.4]} 38. Kg2 {[%clk 0:00:27.7]} 38... Rf3
{[%clk 0:00:06.2]} 39. Kh2 {[%clk 0:00:27.7]} 39... Rf2+ {[%clk 0:00:04]} 40.
Kh1 {[%clk 0:00:28.2]} 40... Rf3 {[%clk 0:00:04.9]} 41. Rh8+ {[%clk 0:00:26.6]}
41... Bg8 {[%clk 0:00:05.4]} 42. Rgxg8+ {[%clk 0:00:27.1]} 42... Kf7 {[%clk
0:00:06.3]} 43. Rxe8 {[%clk 0:00:27.6]} 1-0